fUST/lending_fUST_20250716
["ID","MTS","AMOUNT","RATE_DAILY","PERIOD"]
[372413525,1752634256706,-460.0,0.00020893,2]
[372413526,1752634256715,-460.0,0.00020893,2]
[372413527,1752634256724,-460.0,0.00020893,2]
[372413528,1752634256733,-460.0,0.00020893,2]
[372413529,1752634256742,-257.67,0.00020893,2]
[372413530,1752634256762,-460.0,0.00020893,2]
[372413531,1752634256779,-536.86,0.00020893,2]
[372413532,1752634256788,-460.0,0.00020955,2]
[372413533,1752634256799,-460.0,0.00020955,2]
[372413534,1752634256808,-460.0,0.00020955,2]
[372413535,1752634256818,-460.0,0.00020955,2]
[372413536,1752634256827,-460.0,0.00020955,2]
[372413537,1752634256838,-460.0,0.00020955,2]
[372413538,1752634256847,-460.0,0.00020955,2]
[372413539,1752634256856,-460.0,0.00020955,2]
[372413540,1752634256866,-460.0,0.00020955,2]
[372413541,1752634256875,-462.20652156,0.00020955,2]
[372413542,1752634256884,-460.0,0.00020955,2]
[372413543,1752634256893,-460.0,0.00020955,2]
[372413544,1752634256903,-460.0,0.00020955,2]
[372413545,1752634256912,-460.0,0.00020955,2]
[372413546,1752634256922,-461.72022167,0.00020955,2]
[372413547,1752634256931,-460.0,0.00020955,2]
[372413548,1752634256941,-460.0,0.00020955,2]
[372413549,1752634256951,-460.0,0.00020955,2]
[372413550,1752634256960,-460.0,0.00020955,2]
[372413551,1752634256969,-460.0,0.00020955,2]
[372413552,1752634256979,-460.0,0.00020955,2]
[372413553,1752634256988,-398.1903916,0.00020955,2]
[372413554,1752634256998,-556.61225776,0.00020956,2]
[372413555,1752634257007,-460.0,0.00020956,2]
[372413556,1752634257018,-460.0,0.00020956,2]
[372413557,1752634257027,-460.0,0.00020956,2]
[372413558,1752634257037,-468.19983321,0.00020956,2]
[372413559,1752634257049,-460.0,0.00020956,2]
[372413560,1752634257060,-460.0,0.00020956,2]
[372413561,1752634257069,-500.0,0.00020956,2]
[372413562,1752634257079,-460.0,0.00020956,2]
[372413563,1752634257088,-460.0,0.00020956,2]
[372413564,1752634257098,-460.0,0.00020956,2]
[372413565,1752634257108,-460.0,0.00020956,2]
[372413566,1752634257117,-460.0,0.00020956,2]
[372413567,1752634257127,-460.0,0.00020956,2]
[372413568,1752634257136,-460.0,0.00020956,2]
[372413569,1752634257146,-460.0,0.00020956,2]
[372413570,1752634257155,-460.0,0.00020956,2]
[372413571,1752634257165,-460.0,0.00020956,2]
[372413572,1752634257174,-460.0,0.00020956,2]
[372413573,1752634257184,-460.0,0.00020956,2]
[372413574,1752634257193,-460.0,0.00020956,2]
[372413575,1752634257203,-460.0,0.00020956,2]
[372413576,1752634257213,-460.0,0.00020956,2]
[372413577,1752634257222,-460.0,0.00020956,2]
[372413578,1752634257232,-668.37276293,0.00020964,2]
[372413579,1752634257241,-151.0,0.00021,3]
[372413580,1752634257250,-460.0,0.00021055,2]
[372413581,1752634257260,-460.0,0.00021055,2]
[372413582,1752634257271,-460.0,0.00021055,2]
[372413583,1752634257280,-460.0,0.00021055,2]
[372413584,1752634257290,-460.0,0.00021055,2]
[372413585,1752634257299,-460.0,0.00021055,2]
[372413586,1752634257309,-462.98091743,0.00021055,2]
[372413587,1752634257318,-460.0,0.00021055,2]
[372413588,1752634257328,-460.0,0.00021055,2]
[372413589,1752634257338,-460.0,0.00021055,2]
[372413590,1752634257348,-460.0,0.00021055,2]
[372413591,1752634257358,-460.0,0.00021055,2]
[372413592,1752634257369,-462.47784,0.00021055,2]
[372413593,1752634257380,-460.0,0.00021055,2]
[372413594,1752634257389,-1200.0,0.00021072,2]
[372413595,1752634257399,-12603.13032295,0.00021114,2]
[372413596,1752634257408,-215.5496034,0.00021114,2]
[372413597,1752634257418,-520.84375,0.00021117,2]
[372413598,1752634257427,-460.0,0.00021163,2]
[372413599,1752634257437,-776.63,0.00021163,2]
[372413600,1752634257447,-460.0,0.00021165,2]
[372413601,1752634257457,-775.91,0.00021165,2]
[372413602,1752634257466,-460.0,0.00021165,2]
[372413603,1752634257476,-460.0,0.00021165,2]
[372413604,1752634257486,-151.0,0.00021165,2]
[372413605,1752634257506,-460.0,0.00021165,2]
[372413606,1752634257516,-206.59335,0.00021165,2]
[372413607,1752634257526,-206.59335,0.00021165,2]
[372413608,1752634257536,-460.0,0.00021165,2]
[372413609,1752634257547,-460.0,0.00021165,2]
[372413610,1752634257558,-648.37,0.00021166,2]
[372413611,1752634257568,-460.0,0.00021166,2]
[372413612,1752634257578,-151.0,0.00021166,2]
[372413613,1752634257588,-151.0,0.00021166,2]
[372413614,1752634257598,-460.0,0.00021166,2]
[372413615,1752634257608,-460.0,0.00021166,2]
[372413616,1752634257618,-460.0,0.00021167,2]
[372413617,1752634257628,-460.0,0.00021167,2]
[372413618,1752634257638,-174.7,0.00021167,2]
[372413619,1752634257647,-460.0,0.00021167,2]
[372413620,1752634257658,-460.0,0.00021167,2]
[372413621,1752634257667,-500.0,0.00021199,2]
[372413622,1752634257677,-460.0,0.00021229,2]
[372413623,1752634257687,-460.0,0.00021229,2]
[372413624,1752634257697,-460.0,0.00021229,2]
[372413625,1752634257706,-460.0,0.00021229,2]
[372413626,1752634257716,-460.0,0.00021229,2]
[372413627,1752634257725,-461.31336856,0.00021229,2]
[372413628,1752634257735,-466.02141717,0.00021229,2]
[372413629,1752634257744,-460.0,0.00021229,2]
[372413630,1752634257756,-460.0,0.0002123,2]
[372413631,1752634257766,-460.0,0.0002123,2]
[372413632,1752634257776,-460.0,0.0002123,2]
[372413633,1752634257785,-460.0,0.0002123,2]
[372413634,1752634257795,-500.0,0.00021328,2]
[372413635,1752634257805,-460.0,0.00021329,2]
[372413636,1752634257943,-460.0,0.00021329,2]
[372413637,1752634257954,-460.0,0.00021329,2]
[372413638,1752634257964,-460.0,0.00021329,2]
[372413639,1752634257973,-460.0,0.00021329,2]
[372413640,1752634257983,-460.0,0.00021329,2]
[372413641,1752634257992,-471.80948179,0.00021329,2]
[372413642,1752634258002,-465.37457773,0.00021329,2]
[372413643,1752634258011,-466.15637135,0.00021329,2]
[372413644,1752634258020,-460.0,0.00021329,2]
[372413645,1752634258030,-464.31808404,0.00021329,2]
[372413646,1752634258041,-460.0,0.00021437,2]
[372413647,1752634258051,-776.63,0.00021437,2]
[372413648,1752634258060,-460.0,0.00021439,2]
[372413649,1752634258069,-775.91,0.00021439,2]
[372413650,1752634258079,-460.0,0.00021439,2]
[372413651,1752634258088,-460.0,0.00021439,2]
[372413652,1752634258097,-460.0,0.00021439,2]
[372413653,1752634258107,-460.0,0.00021439,2]
[372413654,1752634258117,-460.0,0.00021439,2]
[372413655,1752634258126,-648.37,0.0002144,2]
[372413656,1752634258135,-460.0,0.0002144,2]
[372413657,1752634258144,-460.0,0.0002144,2]
[372413658,1752634258154,-460.0,0.00021441,2]
[372413659,1752634258163,-460.0,0.00021441,2]
[372413660,1752634258172,-460.0,0.00021441,2]
[372413661,1752634258181,-460.0,0.00021441,2]
[372413662,1752634258190,-460.0,0.00021503,2]
[372413663,1752634258200,-460.0,0.00021711,2]
[372413664,1752634258210,-776.63,0.00021711,2]
[372413665,1752634258219,-460.0,0.00021713,2]
[372413666,1752634258229,-775.91,0.00021713,2]
[372413667,1752634258238,-462.21,0.00021713,2]
[372413668,1752634258248,-460.0,0.00021713,2]
[372413669,1752634258258,-460.0,0.00021713,2]
[372413670,1752634258267,-460.0,0.00021713,2]
[372413671,1752634258277,-376.72,0.00021713,2]
[372413672,1752634258287,-648.37,0.00021714,2]
[372413673,1752634258298,-273.14105706,0.00021714,2]
[372413674,1752634258307,-460.0,0.00021714,2]
[372413675,1752634258317,-460.0,0.00021715,2]
[372413676,1752634258327,-460.0,0.00021715,2]
[372413677,1752634258337,-460.0,0.00021715,2]
[372413678,1752634258347,-460.0,0.00021715,2]
[372413679,1752634258356,-317.33,0.00021777,2]
[372413680,1752634258366,-668.37276293,0.00021872,2]
[372413681,1752634258375,-183.169148,0.00021918,2]
[372413682,1752634258385,-183.169148,0.00021918,2]
[372413683,1752634258394,-183.169148,0.00021918,2]
[372413684,1752634258403,-183.169148,0.00021918,2]
[372413685,1752634258413,-183.169148,0.00021918,2]
[372413686,1752634258423,-183.169148,0.00021918,2]
[372413687,1752634258432,-460.0,0.00021985,2]
[372413688,1752634258441,-776.63,0.00021985,2]
[372413689,1752634258451,-460.0,0.00021987,2]
[372413690,1752634258461,-775.91,0.00021987,2]
[372413691,1752634258470,-460.0,0.00021987,2]
[372413692,1752634258480,-460.0,0.00021987,2]
[372413693,1752634258489,-460.0,0.00021987,2]
[372413694,1752634258499,-648.37,0.00021988,2]
[372413695,1752634258508,-151.0,0.00021988,7]
[372413696,1752634258522,-151.0,0.00021988,7]
[372413697,1752634258531,-460.0,0.00021988,2]
[372413698,1752634258541,-460.0,0.00021989,2]
[372413699,1752634258551,-460.0,0.00021989,2]
[372413700,1752634258560,-460.0,0.00021989,2]
[372413701,1752634258569,-460.0,0.00021989,2]
[372413702,1752634258578,-4541.2,0.00022,7]
[372413703,1752634258588,-21514.77,0.00022,2]
[372413704,1752634258597,-161.0,0.00022,2]
[372413705,1752634258607,-210.41497265,0.00022111,2]
[372413706,1752634258616,-236.24939807,0.00022112,2]
[372413707,1752634258625,-500.0,0.00022199,2]
[372413708,1752634258635,-156.32,0.00022248,2]
[372413709,1752634258644,-460.0,0.00022259,2]
[372413710,1752634258654,-776.63,0.00022259,2]
[372413711,1752634258665,-460.0,0.00022261,2]
[372413712,1752634258675,-775.91,0.00022261,2]
[372413713,1752634258685,-460.0,0.00022261,2]
[372413714,1752634258694,-460.0,0.00022261,2]
[372413715,1752634258703,-460.0,0.00022261,2]
[372413716,1752634258713,-648.37,0.00022262,2]
[372413717,1752634258723,-460.0,0.00022263,2]
[372413718,1752634258732,-460.0,0.00022263,2]
[372413719,1752634258743,-460.0,0.00022263,2]
[372413720,1752634258755,-460.0,0.00022263,2]
[372413721,1752634258765,-500.0,0.00022426,2]
[372413722,1752634258775,-460.0,0.00022533,2]
[372413723,1752634258784,-776.63,0.00022533,2]
[372413724,1752634258794,-460.0,0.00022535,2]
[372413725,1752634258804,-775.91,0.00022535,2]
[372413726,1752634258814,-460.0,0.00022535,2]
[372413727,1752634258823,-460.0,0.00022535,2]
[372413728,1752634258834,-460.0,0.00022535,2]
[372413729,1752634258844,-648.37,0.00022536,2]
[372413730,1752634258853,-460.0,0.00022537,2]
[372413731,1752634258863,-460.0,0.00022537,2]
[372413732,1752634258872,-460.0,0.00022537,2]
[372413733,1752634258881,-460.0,0.00022537,2]
[372413734,1752634258891,-427.0,0.00022573,2]
[372413735,1752634258900,-668.37276293,0.0002278,2]
[372413736,1752634258910,-464.88,0.00022807,2]
[372413737,1752634258920,-776.63,0.00022807,2]
[372413738,1752634258930,-460.0,0.00022809,2]
[372413739,1752634258940,-775.91,0.00022809,2]
[372413740,1752634258949,-460.0,0.00022809,2]
[372413741,1752634258959,-473.05,0.00022809,2]
[372413742,1752634258968,-460.0,0.00022809,2]
[372413743,1752634258978,-184.160775,0.0002281,7]
[372413744,1752634258988,-184.160775,0.0002281,7]
[372413745,1752634258998,-648.37,0.0002281,2]
[372413746,1752634259007,-412.88,0.00022811,2]
[372413747,1752634259017,-460.0,0.00022811,2]
[372413748,1752634259026,-460.0,0.00022811,2]
[372413749,1752634259035,-460.0,0.00022811,2]
[372413750,1752634259045,-460.0,0.00022815,2]
[372413751,1752634259054,-194.61,0.00022994,2]
[372413752,1752634259064,-207.4,0.00023022,2]
[372413753,1752634259073,-776.63,0.00023081,2]
[372413754,1752634259083,-460.0,0.00023083,2]
[372413755,1752634259092,-775.91,0.00023083,2]
[372413756,1752634259101,-460.0,0.00023083,2]
[372413757,1752634259111,-460.0,0.00023083,2]
[372413758,1752634259120,-648.37,0.00023084,2]
[372413759,1752634259129,-460.0,0.00023085,2]
[372413760,1752634259139,-460.0,0.00023085,2]
[372413761,1752634259149,-460.0,0.00023085,2]
[372413762,1752634259158,-881.31,0.000231,7]
[372413763,1752634259167,-575.64,0.000232,2]
[372413764,1752634259177,-776.63,0.00023355,2]
[372413765,1752634259186,-460.0,0.00023357,2]
[372413766,1752634259196,-775.91,0.00023357,2]
[372413767,1752634259205,-266.89588046,0.00023357,2]
[372413768,1752634259215,-460.0,0.00023357,2]
[372413769,1752634259224,-648.37,0.00023358,2]
[372413770,1752634259234,-460.0,0.00023359,2]
[372413771,1752634259244,-460.0,0.00023359,2]
[372413772,1752634259253,-206.54,0.00023359,2]
[372413773,1752634259263,-236.24939807,0.00023456,2]
[372413774,1752634259273,-156.32,0.00023603,2]
[372413775,1752634259282,-776.63,0.00023629,2]
[372413776,1752634259292,-460.0,0.00023631,2]
[372413777,1752634259301,-775.91,0.00023631,2]
[372413778,1752634259310,-460.0,0.00023631,2]
[372413779,1752634259320,-648.37,0.00023632,2]
[372413780,1752634259329,-460.0,0.00023633,2]
[372413781,1752634259339,-506.36,0.00023633,2]
[372413782,1752634259348,-668.37276293,0.00023688,2]
[372413783,1752634259358,-258.79086277,0.00023693,2]
[372413784,1752634259367,-151.0,0.00023707,2]
[372413785,1752634259377,-151.0,0.00023734,2]
[372413786,1752634259387,-554.0,0.0002375,2]
[372413787,1752634259397,-151.0,0.00023762,2]
[372413788,1752634259406,-554.0,0.00023781,2]
[372413789,1752634259416,-198.93348876,0.00023789,2]
[372413790,1752634259425,-554.0,0.00023809,2]
[372413791,1752634259434,-776.63,0.00023903,2]
[372413792,1752634259444,-460.0,0.00023905,2]
[372413793,1752634259453,-775.91,0.00023905,2]
[372413794,1752634259463,-339.97254516,0.00023905,2]
[372413795,1752634259474,-648.37,0.00023906,2]
[372413796,1752634259483,-460.0,0.00023907,2]
[372413797,1752634259492,-166.7326873,0.00023918,2]
[372413798,1752634259502,-159.7314836,0.00023918,2]
[372413799,1752634259512,-576.8651031,0.00023918,2]
[372413800,1752634259522,-178.021619,0.00023918,2]
[372413801,1752634259532,-178.021619,0.00023918,2]
[372413802,1752634259542,-576.8651031,0.00023918,2]
[372413803,1752634259551,-159.7314836,0.00023918,2]
[372413804,1752634259561,-361.4899892,0.00023918,2]
[372413805,1752634259570,-321.5554863,0.00023918,2]
[372413806,1752634259580,-153.0,0.00023918,2]
[372413807,1752634259589,-1153.7302062,0.00023918,2]
[372413808,1752634259599,-575.4421734,0.00023918,2]
[372413809,1752634259609,-554.0,0.00023952,2]
[372413810,1752634259618,-163.31208846,0.00024,2]
[372413811,1752634259628,-151.0,0.00024055,6]
[372413812,1752634259638,-554.0,0.00024108,2]
[372413813,1752634259647,-776.63,0.00024177,2]
[372413814,1752634259657,-460.0,0.00024179,2]
[372413815,1752634259666,-775.91,0.00024179,2]
[372413816,1752634259675,-648.37,0.0002418,2]
[372413817,1752634259685,-599.32,0.00024181,2]
[372413818,1752634259695,-151.0,0.00024297,7]
[372413819,1752634259704,-163.31208846,0.00024329,2]
[372413820,1752634259714,-162.43119549,0.00024329,2]
[372413821,1752634259724,-215.0738,0.00024391,2]
[372413822,1752634259733,-150000.0,0.00024398,2]
[372413823,1752634259743,-100521.15320688,0.00024398,2]
[372413824,1752634259756,-151.0,0.00024398,7]
[372413825,1752634259765,-206.59335,0.00024398,7]
[372413826,1752634259775,-206.59335,0.00024398,7]
[372413827,1752634259785,-151.0,0.00024398,7]
[372413828,1752634259796,-289.296945,0.00024398,7]
[372413829,1752634259805,-1000.0,0.000244,2]
[372413830,1752634259814,-698.047954,0.00024401,8]
[372413831,1752634259824,-790.22467059,0.00024442,2]
[372413832,1752634259834,-776.63,0.00024451,2]
[372413833,1752634259844,-460.0,0.00024453,2]
[372413834,1752634259854,-775.91,0.00024453,2]
[372413835,1752634259863,-648.37,0.00024454,2]
[372413836,1752634259873,-168.0,0.00024498,2]
[372413837,1752634259882,-600.0,0.00024498,2]
[372413838,1752634259892,-151.0,0.00024539,7]
[372413839,1752634259901,-170.10274382,0.00024551,2]
[372413840,1752634259910,-153.746597,0.00024551,7]
[372413841,1752634259921,-151.0,0.00024551,7]
[372413842,1752634259931,-188.825005,0.00024551,7]
[372413843,1752634259941,-188.825005,0.00024551,7]
[372413844,1752634259950,-668.37276293,0.00024597,2]
[372413845,1752634259959,-21514.77,0.000246,2]
[372413846,1752634259968,-151.0,0.000246,7]
[372413847,1752634259978,-206.59335,0.000246,7]
[372413848,1752634259987,-206.59335,0.000246,7]
[372413849,1752634259997,-151.0,0.000246,7]
[372413850,1752634260006,-163.31208846,0.0002463,2]
[372413851,1752634260015,-112675.89121311,0.00024651,2]
[372413852,1752634260025,-151.0,0.00024651,7]
[372413853,1752634260034,-190.622877,0.00024651,7]
[372413854,1752634260044,-190.622877,0.00024651,7]
[372413855,1752634260053,-151.0,0.00024651,7]
[372413856,1752634260064,-151.0,0.00024651,7]
[372413857,1752634260073,-151.0,0.00024651,7]
[372413858,1752634260083,-151.0,0.00024651,7]
[372413859,1752634260092,-351.07064,0.00024651,7]
[372413860,1752634260102,-351.07064,0.00024651,7]
[372413861,1752634260111,-184.160775,0.00024651,7]
[372413862,1752634260120,-184.160775,0.00024651,7]
[372413863,1752634260130,-151.0,0.00024651,7]
[372413864,1752634260139,-151.0,0.00024651,7]
[372413865,1752634260149,-183.169148,0.00024651,7]
[372413866,1752634260159,-183.169148,0.00024651,7]
[372413867,1752634260169,-183.169148,0.00024651,7]
[372413868,1752634260178,-183.169148,0.00024651,7]
[372413869,1752634260189,-192.0,0.00024654,2]
[372413870,1752634260198,-2334.55571406,0.00024657,2]
[372413871,1752634260208,-151.988973,0.00024657,7]
[372413872,1752634260217,-300.0,0.00024657,2]
[372413873,1752634260227,-300.0,0.00024657,2]
[372413874,1752634260236,-300.0,0.00024657,2]
[372413875,1752634260245,-300.0,0.00024657,2]
[372413876,1752634260255,-300.0,0.00024657,2]
[372413877,1752634260264,-300.0,0.00024657,2]
[372413878,1752634260274,-300.0,0.00024657,2]
[372413879,1752634260283,-300.0,0.00024657,2]
[372413880,1752634260293,-300.0,0.00024657,2]
[372413881,1752634260302,-300.0,0.00024657,2]
[372413882,1752634260312,-300.0,0.00024657,2]
[372413883,1752634260322,-300.0,0.00024657,2]
[372413884,1752634260331,-300.0,0.00024657,2]
[372413885,1752634260340,-300.0,0.00024657,2]
[372413886,1752634260350,-300.0,0.00024657,2]
[372413887,1752634260359,-300.0,0.00024657,2]
[372413888,1752634260368,-151.0,0.00024657,7]
[372413889,1752634260378,-4627.81061374,0.00024657,2]
[372413890,1752634260482,-424.98187978,0.00024657,2]
[372413891,1752634260492,-188.825005,0.00024657,7]
[372413892,1752634260501,-188.825005,0.00024657,7]
[372413893,1752634260511,-400.76975278,0.00024658,7]
[372413894,1752634260520,-200.0,0.00024658,15]
[372413895,1752634260530,-380.0,0.00024658,2]
[372413896,1752634260539,-438.0,0.00024658,2]
[372413897,1752634260549,-232.80144525,0.00024673,2]
[372413898,1752634260559,-438.0,0.00024685,2]
[372413899,1752634260568,-805.55787653,0.00024687,2]
[372413900,1752634260577,-554.0,0.00024692,2]
[372413901,1752634260586,-4541.2,0.000247,7]
[372413902,1752634260596,-215.5496034,0.000247,7]
[372413903,1752634260605,-438.0,0.00024713,2]
[372413904,1752634260615,-800.0,0.00024723,2]
[372413905,1752634260624,-776.63,0.00024725,2]
[372413906,1752634260633,-460.0,0.00024727,2]
[372413907,1752634260643,-775.91,0.00024727,2]
[372413908,1752634260653,-151.0,0.00024727,7]
[372413909,1752634260662,-206.59335,0.00024727,7]
[372413910,1752634260672,-206.59335,0.00024727,7]
[372413911,1752634260682,-151.0,0.00024727,7]
[372413912,1752634260693,-648.37,0.00024728,2]
[372413913,1752634260703,-456.3646118,0.0002474,2]
[372413914,1752634260712,-153.0,0.0002474,2]
[372413915,1752634260722,-153.0,0.0002474,2]
[372413916,1752634260731,-153.0,0.0002474,2]
[372413917,1752634260741,-438.0,0.0002474,2]
[372413918,1752634260752,-601.63858908,0.00024753,2]
[372413919,1752634260762,-438.0,0.00024768,2]
[372413920,1752634260771,-151.0,0.00024781,7]
[372413921,1752634260780,-300.0,0.00024792,2]
[372413922,1752634260789,-438.0,0.00024795,2]
[372413923,1752634260801,-236.24939807,0.000248,2]
[372413924,1752634260811,-52278.6141568,0.000248,2]
[372413925,1752634260820,-210.41497265,0.000248,2]
[372413926,1752634260829,-438.0,0.00024822,2]
[372413927,1752634260839,-800.0,0.00024842,2]
[372413928,1752634260848,-438.0,0.0002485,2]
[372413929,1752634260858,-151.0,0.00024877,7]
[372413930,1752634260867,-438.0,0.00024877,2]
[372413931,1752634260877,-781367.31918283,0.00024888,2]
[372413932,1752634260981,-460.0,0.00019248,2]
[372413933,1752634260991,-460.0,0.00019522,2]
[372413934,1752634261001,-12821.03277836,0.00024888,2]
[372413935,1752634261013,-47050.37418603,0.00024888,2]
[372413936,1752634261025,-100657.60125023,0.00024888,2]
[372413937,1752634261083,-460.0,0.00019245,2]
[372413938,1752634261092,-8094.52722464,0.00024888,2]
[372413939,1752634261107,-520.84375,0.000246,3]
[372413940,1752634261116,-5293.12493295,0.00024888,2]
[372413941,1752634261157,-239.07625994,0.00019246,2]
[372413942,1752634261166,-770.87374006,0.00024888,2]
[372413943,1752634261178,-38969.04423652,0.00024888,2]
[372413944,1752634261189,-25378.493,0.00024888,2]
[372413945,1752634261200,-17987.36614958,0.00024888,2]
[372413946,1752634261211,-17812.35786529,0.00024888,2]
[372413947,1752634547158,4782.6810927,0.00018244,2]
[372413948,1752634659594,5000.0,0.000185,2]
[372413949,1752634676667,5000.0,0.000185,2]
[372413950,1752634688063,15925.74339985,0.00018244,2]
[372413951,1752634688086,8974.25660015,0.00018244,2]
[372413952,1752634693473,5000.0,0.000185,2]
[372413953,1752634709653,5000.0,0.000185,2]
[372413954,1752634710679,279.206457,0.00013699,2]
[372413956,1752634727458,5000.0,0.000185,2]
[372413957,1752634744795,5000.0,0.000185,2]
[372413959,1752634761131,5000.0,0.000185,2]
[372413960,1752634777485,5000.0,0.000185,2]
[372413961,1752634782484,746.53694285,0.00018237,2]
[372413962,1752634782508,11016.53515365,0.00018237,2]
[372413963,1752634792865,5000.0,0.000185,2]
[372413964,1752634810558,5000.0,0.000185,2]
[372413965,1752634826681,5000.0,0.000185,2]
[372413966,1752634842531,5000.0,0.000185,2]
[372413967,1752634859034,5000.0,0.000185,2]
[372413968,1752634875467,3983.46484635,0.000185,2]
[372413969,1752634875490,1016.53515365,0.000185,2]
[372413970,1752634891311,5000.0,0.000185,2]
[372413971,1752634907609,5000.0,0.000185,2]
[372413972,1752634925724,5000.0,0.000185,2]
[372413973,1752634941503,5000.0,0.000185,2]
[372413974,1752634958307,5000.0,0.000185,2]
[372413975,1752634975891,5000.0,0.000185,2]
[372413976,1752634989733,1403.486676,0.0001822,2]
[372413977,1752634992966,5000.0,0.000185,2]
[372413979,1752635008725,2579.97817035,0.000185,2]
[372413980,1752635008749,2420.02182965,0.000185,2]
[372413981,1752635020598,5552.6269629,0.0001822,2]
[372413982,1752635025970,5000.0,0.000185,2]
[372413983,1752635041707,5000.0,0.000185,2]
[372413984,1752635057351,5000.0,0.000185,2]
[372413985,1752635074420,5000.0,0.000185,2]
[372413986,1752635091324,5000.0,0.000185,2]
[372413987,1752635103158,2915.0,0.0001631,2]
[372413988,1752635107281,4112.35120745,0.000185,2]
[372413989,1752635107306,887.64879255,0.000185,2]
[372413990,1752635110547,-199.48539446,0.00018665,2]
[372413991,1752635110569,-166.09233244,0.00018667,2]
[372413992,1752635110590,-500.0,0.00018667,2]
[372413993,1752635110611,-445.82586007,0.00018667,2]
[372413994,1752635110633,-581.84410318,0.000189,2]
[372413995,1752635110654,-202.21470722,0.00018919,2]
[372413996,1752635110676,-197.4869027,0.00019211,2]
[372413997,1752635110704,-263.39,0.00019235,3]
[372413998,1752635110736,-300.0,0.0001924,2]
[372413999,1752635110758,-1200.0,0.0001924,2]
[372414000,1752635110780,-300.0,0.0001924,2]
[372414001,1752635110802,-300.0,0.0001924,2]
[372414002,1752635110835,-500.0,0.00019241,2]
[372414003,1752635110857,-500.0,0.00019241,2]
[372414004,1752635110878,-500.0,0.00019241,2]
[372414005,1752635110900,-500.0,0.00019241,2]
[372414006,1752635110922,-500.0,0.00019241,2]
[372414007,1752635110944,-500.0,0.00019241,2]
[372414008,1752635110968,-500.0,0.00019241,2]
[372414009,1752635110993,-500.0,0.00019241,2]
[372414010,1752635111015,-500.0,0.00019241,2]
[372414011,1752635111036,-500.0,0.00019241,2]
[372414012,1752635111059,-500.0,0.00019241,2]
[372414013,1752635111082,-500.0,0.00019241,2]
[372414014,1752635111103,-386.95399834,0.00019241,2]
[372414015,1752635111124,-500.0,0.00019241,2]
[372414016,1752635111148,-500.0,0.00019241,2]
[372414017,1752635111170,-324.29879985,0.00019241,2]
[372414018,1752635111192,-500.0,0.00019241,2]
[372414019,1752635111215,-500.0,0.00019241,2]
[372414020,1752635111240,-500.0,0.00019241,2]
[372414021,1752635111276,-503.47467011,0.00019241,2]
[372414022,1752635111300,-501.47358531,0.00019241,2]
[372414023,1752635111325,-500.0,0.00019241,2]
[372414024,1752635111351,-500.0,0.00019241,2]
[372414025,1752635111373,-500.0,0.00019241,2]
[372414026,1752635111394,-500.0,0.00019241,2]
[372414027,1752635111567,-500.0,0.00019241,2]